[Event "1st Serbian League 2022"]
[Site "Vrnjacka Banja"]
[Date "2022.09.21"]
[Round "2.11"]
[White "Zajic, Milan"]
[Black "Radojicic, Aleksandar M"]
[Result "1-0"]
[ECO "B42"]
[WhiteElo "2402"]
[BlackElo "2192"]
[Annotator "TA"]
[PlyCount "45"]
[EventDate "2022.09.20"]
[EventType "team-tourn"]
[EventCountry "SRB"]
[SourceTitle "playchess.com"]
[Source "ChessBase"]
[SourceQuality "1"]
[TimeControl "40/5400+30:1800+30"]

{[%evp 13,45,32,21,15,21,20,16,14,79,69,70,31,29,29,181,200,276,191,179,198,539,527,708,443,415,265,291,275,656,653,654,647,1208,1171]} 1. e4 {[%emt 0:00:02]} c5 {[%emt 0:00:01]} 2. Nf3 {[%emt 0:00:07]} e6 {[%emt 0:00:02]} 3. d4 {[%emt 0:00:06]} cxd4 {[%emt 0:00:01]} 4. Nxd4 {[%emt 0:00:06]} a6 {[%emt 0:00:02]} 5. Bd3 {[%emt 0:00:08]} Nf6 {[%emt 0:00:29]} 6. O-O {[%emt 0:00:13]} Qc7 {[%emt 0:00:24]} 7. Qe2 {[%emt 0:00:06]} Bd6 {[%emt 0:00:23]} 8. f4 {[%emt 0:00:17][%cal Bf2f4,Bf4f5][%mdl 32] B42: Sicilian: Kan Variation: 5 Bd3.} Bc5 {[%emt 0:01:48]} 9. c3 {[%emt 0:00:10]} Nc6 {[%emt 0:08:52]} 10. Kh1 {[%emt 0:00:10] [#] The position is equal.} Bxd4 $146 {[%emt 0:08:01]} (10... Nxd4 $11 11. cxd4 Bxd4) ({Predecessor:} 10... Nxd4 11. cxd4 Bxd4 12. Nd2 d5 13. e5 Nd7 14. Nf3 Ba7 15. Bd2 g6 16. Rac1 Qb6 17. b4 Nb8 18. Rxc8+ Kd7 19. Rxh8 {1-0 (19) Vasquez Schroder,R (2441)-Aldokhin,I (2413) Chess.com INT 2020}) 11. cxd4 $16 {[%emt 0:00:15]} d5 {[%emt 0:00:01]} 12. exd5 {[%emt 0:00:53]} (12. e5 $5 {[%cal Re5f6]} Ng8 13. Nc3 $16) 12... Nxd5 {[%emt 0:38:44]} 13. f5 {[%emt 0:00:15]} e5 $2 {[%emt 0:25:51] This costs Black the game.} ({But not} 13... Nxd4 14. Qg4 Qe5 15. Nc3 $16) (13... O-O $1 $11) 14. Nc3 $18 {[%emt 0:20:10][%cal Bb1c3,Bc3d5,Bd5b6][%mdl 32]} Ndb4 {[%emt 0:09:11]} 15. dxe5 {[%emt 0:26:08]} Nxd3 {[%emt 0:00:47]} 16. Qxd3 {[%emt 0:03:06] [#] Strongly threatening Qg3.} Nxe5 $2 {[%emt 0:00:32]} (16... O-O 17. Bf4 Qd7 18. Qxd7 Bxd7) 17. Nd5 {[%emt 0:27:14]} Qd6 {[%emt 0:00:01]} 18. Qb3 {[%emt 0:01:01]} O-O {[%emt 0:02:21][%cal Oc8e6]} 19. Nb6 {[%emt 0:01:28]} Rb8 {[%emt 0:01:42]} 20. Bf4 {[%emt 0:01:32]} Qc5 $2 {[%emt 0:00:34] [#]} (20... Bxf5 21. Nc4 Qd5) 21. Rac1 {[%emt 0:00:58] White is clearly winning.} Qd4 {[%emt 0:00:40]} 22. Rcd1 {[%emt 0:00:56]} ({Weaker is} 22. Nxc8 Rbxc8 23. Rcd1 Qc5 $16) 22... Qc5 {[%emt 0:00:32]} 23. Rd5 {[%emt 0:00:31] Weighted Error Value: White=0.36/Black=0.82} 1-0

[Event "1st Serbian League 2022"]
[Site "Vrnjacka Banja"]
[Date "2022.09.21"]
[Round "2.12"]
[White "Velikic, Adela"]
[Black "Stankovic, Milos"]
[Result "1/2-1/2"]
[ECO "D35"]
[WhiteElo "2272"]
[BlackElo "2439"]
[Annotator "TA"]
[PlyCount "173"]
[EventDate "2022.09.20"]
[EventType "team-tourn"]
[EventCountry "SRB"]
[SourceTitle "playchess.com"]
[Source "ChessBase"]
[SourceQuality "1"]
[TimeControl "40/5400+30:1800+30"]

{[%evp 13,173,11,23,21,24,32,31,31,39,1,37,33,37,34,38,39,39,39,63,54,47,56,61,54,58,54,57,42,40,37,40,35,33,36,52,17,16,18,17,8,30,31,47,30,45,21,27,23,25,20,26,20,21,21,25,9,27,24,27,26,34,35,47,47,56,26,29,8,40,29,55,31,37,44,42,31,52,53,109,53,53,33,38,41,43,34,29,21,21,24,22,8,23,0,26,0,0,0,0,0,0,0,0,0,74,39,46,14,62,35,87,34,36,44,61,26,51,49,48,20,70,12,12,12,12,12,12,12,12,12,12,12,20,20,20,20,28,28,28,28,28,28,28,28,28,28,28,28,28,12,28,24,28,0,28,10,12,0,0,0,0,-8]} 1. c4 {[%emt 0:00:06]} e6 {[%emt 0:01:11]} 2. Nc3 {[%emt 0:00:39]} d5 {[%emt 0:00:29]} 3. d4 {[%emt 0:00:07]} Nf6 {[%emt 0:00:30]} 4. cxd5 {[%emt 0:00:30]} exd5 {[%emt 0:00:31]} 5. Bg5 {[%emt 0:00:09]} Be7 {[%emt 0:00:29]} 6. e3 {[%emt 0:00:08]} O-O {[%emt 0:01:30]} 7. Bd3 {[%emt 0:00:26]} Re8 {[%emt 0:01:03]} 8. Nf3 {[%emt 0:00:31] D35: Queen's Gambit Declined: Exchange Variation.} h6 $1 {[%emt 0:01:03][%mdl 4] is more profitable than 8...Nbd7 at the moment.} 9. Bf4 {[%emt 0:00:37]} Bd6 {[%emt 0:01:26]} 10. Bxd6 {[%emt 0:00:29] White is slightly better.} Qxd6 {[%emt 0:00:27]} 11. h3 {[%emt 0:00:25]} (11. Rc1 $5 {[%cal Rc3b5]}) 11... a6 {[%emt 0:18:11]} 12. O-O {[%emt 0:08:14]} Nbd7 {[%emt 0:02:29]} 13. Rc1 {[%emt 0:03:44]} c5 {[%emt 0:02:47]} 14. dxc5 {[%emt 0:04:50]} Nxc5 {[%emt 0:02:28]} 15. Bb1 {[%emt 0:01:03] [#]} Bd7 $146 {[%emt 0:08:08]} ({Predecessor:} 15... Rd8 16. Nd4 Nce4 17. Nxe4 dxe4 18. Qb3 Qe5 19. Qb6 Re8 20. Rc5 Qe7 {1-0 (33) Yakubboev,N (2630)-Mohammed,D (2041) Sharjah 2022}) 16. Qd4 {[%emt 0:07:32][%cal Oc3d5]} Ne6 {[%emt 0:07:18]} 17. Qe5 {[%emt 0:15:28]} Qxe5 {[%emt 0:08:03]} 18. Nxe5 {[%emt 0:00:07]} Red8 {[%emt 0:07:21]} 19. Rfd1 {[%emt 0:06:25] Against d4} Be8 {[%emt 0:00:45]} 20. Ne2 {[%emt 0:05:10] Inhibits d4.} Bb5 {[%emt 0:07:04]} 21. Nd4 {[%emt 0:04:05]} Nxd4 {[%emt 0:00:10]} 22. Rxd4 {[%emt 0:01:13]} Rac8 {[%emt 0:01:13]} 23. Rcd1 {[%emt 0:03:54]} Re8 {[%emt 0:01:34]} 24. Ng4 {[%emt 0:08:08]} (24. Bf5 $5 {[%cal Rf5c8]}) 24... Nxg4 {[%emt 0:00:54]} 25. hxg4 {[%emt 0:00:17]} Rc4 {[%emt 0:01:42]} 26. Kh2 {[%emt 0:04:22]} g6 {[%emt 0:04:47]} 27. Kg3 {[%emt 0:00:54]} Bc6 {[%emt 0:00:44]} 28. a3 {[%emt 0:05:37]} Kg7 {[%emt 0:02:20]} 29. Ba2 {[%emt 0:01:22]} Rc2 {[%emt 0:00:34]} 30. R1d2 {[%emt 0:03:27]} Rxd2 {[%emt 0:01:32]} 31. Rxd2 $11 {[%emt 0:00:04][%mdl 4096] Endgame KRB-KRB} Re5 {[%emt 0:00:38]} 32. Rd4 {[%emt 0:05:21]} Kf6 {[%emt 0:02:32]} 33. Rd3 {[%emt 0:01:43]} Ke7 {[%emt 0:03:20]} 34. f3 {[%emt 0:01:18]} a5 {[%emt 0:02:36]} 35. Kf2 {[%emt 0:02:23]} Kd6 {[%emt 0:01:57]} 36. b4 {[%emt 0:00:47]} axb4 {[%emt 0:01:02]} 37. axb4 {[%emt 0:00:05]} Kc7 {[%emt 0:01:06]} 38. Rd4 {[%emt 0:04:49]} f6 {[%emt 0:00:30]} 39. Rf4 {[%emt 0:00:53]} Re6 {[%emt 0:00:08]} 40. e4 {[%emt 0:01:18]} g5 {[%emt 0:04:12]} (40... Kd6 $2 41. exd5 Bxd5 42. Rd4 $18) (40... Bd7 $5 {[%cal Re6a6]} 41. exd5 (41. Bxd5 Rd6 $11) 41... Ra6 $14) 41. exd5 {[%emt 0:07:28]} Rd6 {[%emt 0:01:27]} 42. Rd4 {[%emt 0:01:55]} (42. Re4 $5 {[%cal Rd5c6]} Bxd5 43. Bxd5 Rxd5 44. Re6 $11 (44. Re7+ Kc6 $16)) 42... Bd7 $1 {[%emt 0:00:07]} 43. Rc4+ {[%emt 0:04:17]} Kd8 $1 {[%emt 0:00:07]} 44. Rc2 {[%emt 0:02:27]} Rb6 {[%emt 0:00:48]} 45. Rb2 $1 {[%emt 0:00:27]} Ke7 {[%emt 0:00:06]} ({Better is} 45... Kc7 $14) 46. Ke3 {[%emt 0:01:32]} (46. Bc4 $16) 46... Ra6 $1 $14 {[%emt 0:00:29]} 47. Bc4 {[%emt 0:06:02]} Ra1 {[%emt 0:00:32]} 48. Kd4 {[%emt 0:06:42]} Kd6 {[%emt 0:00:37]} 49. Bd3 {[%emt 0:00:57]} Rd1 {[%emt 0:00:24]} 50. Kc3 {[%emt 0:04:29]} b6 {[%emt 0:03:17]} 51. Be4 {[%emt 0:00:14]} Rc1+ {[%emt 0:02:37]} 52. Kd2 {[%emt 0:00:37]} Rg1 {[%emt 0:00:26]} 53. Kc3 {[%emt 0:00:31]} (53. Ke3 $5 {[%cal Rb2a2]}) 53... Rc1+ {[%emt 0:00:08]} 54. Kb3 {[%emt 0:00:21]} Bb5 {[%emt 0:00:13] [#] ( -> ...Bc4+)} 55. Rd2 {[%emt 0:00:30]} Bc4+ {[%emt 0:03:00]} 56. Kb2 {[%emt 0:00:09]} Rg1 {[%emt 0:00:07]} 57. Kc3 {[%emt 0:00:44]} Rc1+ {[%emt 0:00:08]} 58. Kd4 {[%emt 0:00:26]} Bb5 {[%emt 0:01:11]} (58... b5 $11 {remains equal.}) 59. Rc2 {[%emt 0:00:39]} Rd1+ {[%emt 0:09:18]} 60. Kc3 $1 {[%emt 0:00:26]} Ra1 {[%emt 0:01:07]} (60... Re1 $11 {is more appropriate.}) 61. Kb2 {[%emt 0:00:38]} (61. g3 $5 {[%cal Rc2h2]}) 61... Ra4 {[%emt 0:00:11]} (61... Rg1 $1 $14) 62. Rc8 {[%emt 0:00:39]} (62. Kb3 $16) 62... Rxb4+ {[%emt 0:00:33]} 63. Kc3 {[%emt 0:00:04]} Ra4 {[%emt 0:00:06]} 64. Rd8+ {[%emt 0:00:33]} Ke5 {[%emt 0:00:58]} 65. Rb8 {[%emt 0:00:23]} Rc4+ {[%emt 0:01:40]} 66. Kb3 {[%emt 0:00:36]} Rd4 {[%emt 0:00:10]} ({Black should play} 66... Rc7 $11) 67. Rxb6 {[%emt 0:00:35]} (67. Rb7 $14) 67... Bc4+ $11 {[%emt 0:00:13]} 68. Kc3 {[%emt 0:00:38] [#] Re6+ is the strong threat.} Bxd5 {[%emt 0:00:13]} 69. Rb5 {[%emt 0:00:30] Strongly threatening Bc2.} Rxe4 {[%emt 0:03:37]} 70. fxe4 {[%emt 0:00:07]} Kxe4 {[%emt 0:00:05] KR-KB} 71. Kd2 {[%emt 0:01:04]} Kd4 {[%emt 0:00:25]} 72. g3 {[%emt 0:00:24]} Be6 {[%emt 0:00:33]} 73. Rb4+ {[%emt 0:00:18]} Ke5 {[%emt 0:00:16]} 74. Ke3 {[%emt 0:00:10]} f5 {[%emt 0:00:37]} 75. Rb5+ {[%emt 0:00:25]} Kf6 {[%emt 0:00:07]} 76. gxf5 {[%emt 0:00:28]} Bxf5 {[%emt 0:00:07]} 77. Rb6+ {[%emt 0:00:37]} Kg7 {[%emt 0:00:47]} 78. Kd4 {[%emt 0:00:14]} h5 {[%emt 0:00:08]} 79. Ke5 {[%emt 0:00:22]} Bg4 {[%emt 0:16:21]} 80. Rb2 {[%emt 0:01:13]} Kg6 {[%emt 0:00:00]} 81. Rf2 {[%emt 0:00:27]} Bh3 {[%emt 0:00:00]} 82. Rf8 {[%emt 0:00:34] And now Rg8+ would win.} Kg7 {[%emt 0:00:00] Against Rg8+} 83. Rf2 {[%emt 0:00:34]} Kg6 {[%emt 0:00:00]} 84. Kd6 {[%emt 0:00:39]} Bg4 {[%emt 0:00:00] The position is equal.} 85. Ke7 {[%emt 0:00:24]} h4 {[%emt 0:00:00]} 86. gxh4 {[%emt 0:00:22]} gxh4 {[%emt 0:00:00]} 87. Rh2 {[%emt 0:00:10] Weighted Error Value: White=0.08 (flawless) /Black=0.09 (flawless)} 1/2-1/2

[Event "1st Serbian League 2022"]
[Site "Vrnjacka Banja"]
[Date "2022.09.21"]
[Round "2.13"]
[White "Ioannidis, Evgenios"]
[Black "Sanal, Vahap"]
[Result "1/2-1/2"]
[ECO "D35"]
[WhiteElo "2486"]
[BlackElo "2595"]
[Annotator "TA"]
[PlyCount "80"]
[EventDate "2022.09.20"]
[EventType "team-tourn"]
[EventCountry "SRB"]
[SourceTitle "playchess.com"]
[Source "ChessBase"]
[SourceQuality "1"]
[TimeControl "40/5400+30:1800+30"]

{[%evp 9,80,14,29,30,25,20,29,28,29,39,22,16,19,9,0,0,0,0,4,6,71,19,23,-29,-34,-33,-27,-48,-31,-34,0,0,0,0,0,0,0,0,0,7,8,9,13,0,0,0,0,0,0,0,0,0,0,0,0,0,0,0,0,0,0,0,0,0,0,0,0,0,0,0,0,0,0]} 1. c4 {[%emt 0:03:01]} e6 {[%emt 0:00:44]} 2. Nc3 {[%emt 0:00:37]} d5 {[%emt 0:00:35]} 3. d4 {[%emt 0:00:17]} Nf6 {[%emt 0:00:07]} 4. cxd5 {[%emt 0:00:25]} exd5 {[%emt 0:00:06]} 5. Bg5 {[%emt 0:00:09]} Bb4 {[%emt 0:00:06]} 6. Qb3 {[%emt 0:03:21] D35: Queen's Gambit Declined: Exchange Variation.} c5 {[%emt 0:02:39]} 7. dxc5 {[%emt 0:00:07]} Nc6 {[%emt 0:01:54] White must now prevent ...d4.} 8. O-O-O {[%emt 0:00:08][%cal Rc3d5] White has an edge.} Qa5 {[%emt 0:00:29]} 9. Bxf6 {[%emt 0:01:04]} (9. Nxd5 Qxc5+ 10. Qc2 Qxc2+ 11. Kxc2 Bf5+ 12. Kb3 (12. Kc1 $2 Nxd5 13. Rxd5 Be4 $19) 12... Nxd5 13. Rxd5 Be6 $17) 9... gxf6 {[%emt 0:00:06] [#]} 10. a3 $146 {[%emt 0:02:30]} ({Not} 10. Qxd5 $2 Bxc3 11. Qd3 (11. bxc3 $2 Qa3+ 12. Kd2 Be6 $19) 11... Nb4 12. Qd8+ Qxd8 $19) (10. Rxd5 Be6 11. e4 Bxc3 12. Qxc3 (12. bxc3 O-O $17) 12... Qxa2 $15) ({Predecessor:} 10. e3 Be6 11. Kb1 O-O-O 12. Nxd5 Bxc5 13. Nf3 Bxe3 14. fxe3 Bxd5 15. Bc4 Bxc4 16. Qxc4 {½-½ (60) Vakhidov,J (2564)-Shankland,S (2720) Chennai 2022}) 10... Bxc3 {[%emt 0:09:52]} 11. Qxc3 {[%emt 0:00:09]} Qxc3+ {[%emt 0:00:05]} 12. bxc3 {[%emt 0:00:06]} Be6 {[%emt 0:00:16]} 13. Nh3 {[%emt 0:02:27]} Na5 {[%emt 0:04:46]} 14. Nf4 {[%emt 0:00:10]} Nb3+ {[%emt 0:05:44] [#]} (14... Rc8 $11 {keeps the balance.}) 15. Kb2 {[%emt 0:01:12]} (15. Kc2 $1 $16 {[%cal Rc2b3]} Nxc5 16. f3 (16. Nxd5 O-O-O $11)) 15... Nxc5 $11 {[%emt 0:00:07][%cal Bb3c5,Bc5e4,Be4f2,Bf2g4,Bg4h2][%mdl 32]} 16. Nxd5 {[%emt 0:01:58]} (16. e3 $142) 16... O-O-O {[%emt 0:03:08]} 17. c4 {[%emt 0:00:09]} Ne4 {[%emt 0:00:39]} 18. Rd4 {[%emt 0:03:27]} Nxf2 {[%emt 0:00:30]} 19. Rg1 {[%emt 0:00:03]} Ng4 {[%emt 0:05:50]} 20. e4 {[%emt 0:01:57] The position is equal.} Nxh2 {[%emt 0:02:23]} 21. Kc3 {[%emt 0:01:04]} Ng4 {[%emt 0:24:45]} 22. Be2 {[%emt 0:01:38]} Ne5 {[%emt 0:04:17]} 23. Nxf6 {[%emt 0:00:36]} Rxd4 {[%emt 0:01:51]} 24. Kxd4 {[%emt 0:03:00]} Nc6+ {[%emt 0:04:17]} 25. Kc3 {[%emt 0:00:36]} Kd8 {[%emt 0:00:47]} 26. g4 {[%emt 0:01:35]} Ke7 {[%emt 0:02:18]} 27. g5 {[%emt 0:00:13]} Rc8 {[%emt 0:04:27]} 28. Rh1 {[%emt 0:02:09]} Ne5 {[%emt 0:00:20]} 29. Nd5+ {[%emt 0:01:35]} Bxd5 {[%emt 0:08:48]} 30. exd5 {[%emt 0:00:06] Strongly threatening Kd4.} Nxc4 $1 {[%emt 0:00:14]} 31. Bxc4 {[%emt 0:00:48][%mdl 4096] Endgame KRB-KR} b5 $1 {[%emt 0:00:11][%mdl 64] [#] Pin} 32. Kb4 {[%emt 0:00:09]} bxc4 {[%emt 0:01:36] KR-KR} 33. Kc3 {[%emt 0:00:04]} Kd6 {[%emt 0:03:08]} 34. Rxh7 {[%emt 0:00:32]} Rc7 {[%emt 0:03:30]} 35. Rg7 {[%emt 0:00:37]} Kxd5 {[%emt 0:01:13]} 36. g6 {[%emt 0:00:04]} Ke6 {[%emt 0:00:02]} 37. gxf7 {[%emt 0:00:05]} Rxf7 {[%emt 0:00:03]} 38. Rxf7 {[%emt 0:00:05]} Kxf7 {[%emt 0:00:02]} 39. Kxc4 {[%emt 0:00:06]} Ke6 {[%emt 0:00:02]} 40. Kc5 {[%emt 0:00:06]} Ke5 {[%emt 0:08:33] Weighted Error Value: White=0.06 (flawless) /Black=0.06 (flawless)} 1/2-1/2

[Event "1st Serbian League 2022"]
[Site "Vrnjacka Banja"]
[Date "2022.09.21"]
[Round "2.14"]
[White "Gurel, Ediz"]
[Black "Damljanovic, Branko"]
[Result "1-0"]
[ECO "B60"]
[WhiteElo "2437"]
[BlackElo "2436"]
[Annotator "TA"]
[PlyCount "97"]
[EventDate "2022.09.20"]
[EventType "team-tourn"]
[EventCountry "SRB"]
[SourceTitle "playchess.com"]
[Source "ChessBase"]
[SourceQuality "1"]
[TimeControl "40/5400+30:1800+30"]

{[%evp 16,97,41,23,41,23,27,23,30,28,29,22,12,0,0,0,0,0,0,-1,0,0,39,14,1,0,12,8,4,-18,0,-42,0,-31,0,0,0,0,0,0,0,0,0,3,2,10,14,0,0,0,41,45,112,8,13,13,16,0,0,0,11,0,224,91,257,254,477,363,475,489,505,426,514,247,473,451,468,455,516,516,496,462,804,743]} 1. e4 {[%emt 0:00:07]} c5 {[%emt 0:00:42]} 2. Nf3 {[%emt 0:00:06]} Nc6 {[%emt 0:00:26]} 3. d4 {[%emt 0:00:05]} cxd4 {[%emt 0:00:04]} 4. Nxd4 {[%emt 0:00:04]} Nf6 {[%emt 0:01:40]} 5. Nc3 {[%emt 0:00:04]} d6 {[%emt 0:00:04]} 6. Bg5 {[%emt 0:00:16]} Qb6 {[%emt 0:00:03]} 7. Nb3 {[%emt 0:05:25]} e6 {[%emt 0:00:18]} 8. Bxf6 {[%emt 0:03:33]} gxf6 {[%emt 0:00:04]} 9. Qd2 {[%emt 0:01:53]} Bd7 {[%emt 0:00:18] B60: Sicilian: Richter-Rauzer: Unusual Black 6th moves and 6...Bd7 without 7 Qd2.} 10. O-O-O {[%emt 0:01:06]} O-O-O {[%emt 0:00:35]} 11. f4 {[%emt 0:02:06]} Kb8 {[%emt 0:01:48] White has an edge.} 12. Kb1 {[%emt 0:07:38]} Na5 {[%emt 0:02:05]} 13. Nxa5 {[%emt 0:02:59]} Qxa5 {[%emt 0:00:20]} 14. Bc4 {[%emt 0:00:15] [#]} f5 $146 {[%emt 0:06:42]} ({Predecessor:} 14... h5 15. Rhf1 Be7 16. Qd3 Rc8 17. Bb3 h4 18. Qh3 Rc7 19. f5 Qe5 20. Rde1 Rhc8 {0-1 (35) Popovic,D (2500)-Ratkovic,M (2421) Ruma 2020}) 15. exf5 {[%emt 0:08:00]} Qxf5 {[%emt 0:01:11]} 16. Rhe1 {[%emt 0:02:26]} Qc5 {[%emt 0:35:04]} 17. Bb3 {[%emt 0:07:43]} d5 {[%emt 0:01:54] Prevents Ne4.} 18. f5 {[%emt 0:01:23]} Bd6 {[%emt 0:24:08]} 19. Qh6 {[%emt 0:09:38][%cal Rb3d5]} ({Of course not} 19. Ne4 dxe4 20. Qxd6+ Qxd6 21. Rxd6 Kc7 $15) 19... Bc7 {[%emt 0:00:48]} 20. Qh5 {[%emt 0:11:35]} Qf8 {[%emt 0:11:56]} (20... d4 $5 {[%cal Rd4c3]} 21. Qxf7 Bc6 $11) 21. a3 {[%emt 0:03:37]} Qg7 {[%emt 0:00:45]} 22. Rf1 {[%emt 0:01:12]} Rhf8 {[%emt 0:00:41]} 23. Ka2 {[%emt 0:17:20]} Bc6 {[%emt 0:01:58]} 24. Qe2 {[%emt 0:02:54]} Qe5 {[%emt 0:01:39]} (24... d4 $5 {[%cal Rd4c3]} 25. fxe6 fxe6 26. Rxf8 (26. Ne4 Qe5 $15) 26... Rxf8 $15) 25. Qxe5 {[%emt 0:00:53]} Bxe5 {[%emt 0:00:03]} 26. Rde1 {[%emt 0:00:02]} Bxc3 {[%emt 0:02:46]} 27. bxc3 {[%emt 0:00:01]} Rfe8 {[%emt 0:01:13]} 28. Rf4 {[%emt 0:01:17]} a5 {[%emt 0:02:43]} 29. Kb2 {[%emt 0:01:19]} e5 {[%emt 0:01:54]} 30. Rh4 {[%emt 0:00:01]} f6 {[%emt 0:00:14]} 31. Rxh7 {[%emt 0:01:16]} a4 {[%emt 0:00:24]} 32. Ba2 {[%emt 0:00:01]} e4 {[%emt 0:00:50]} 33. Rh6 {[%emt 0:00:50]} Rd6 {[%emt 0:01:05]} (33... Rf8 $14) 34. c4 {[%emt 0:01:06]} ({White should play} 34. g4 $16) 34... dxc4 $11 {[%emt 0:00:17]} 35. Bxc4 {[%emt 0:00:01]} Re5 $1 {[%emt 0:00:15]} 36. g4 $36 {[%emt 0:04:30][%mdl 2048] Hoping for g5. White is more active.} Rc5 $1 {[%emt 0:00:56]} 37. Ba2 {[%emt 0:00:01]} Kc7 {[%emt 0:00:26]} 38. Re2 {[%emt 0:00:35] Against Rd2} b5 $2 {[%emt 0:00:37]} (38... Rd1 $1 $11) 39. Be6 {[%emt 0:01:08]} (39. h4 $1 $18 {[%cal Rh4h5]}) 39... Rd4 $2 {[%emt 0:00:13] This move loses the game for Black.} (39... Re5 $16) 40. Rxf6 $18 {[%emt 0:01:05]} b4 $2 {[%emt 0:00:02]} (40... e3 41. Rxe3 Rxg4) 41. Rf8 {[%emt 0:33:09]} bxa3+ {[%emt 0:03:21]} 42. Kxa3 {[%emt 0:00:00]} Rc3+ {[%emt 0:00:57]} 43. Ka2 {[%emt 0:00:00]} Rf3 {[%emt 0:01:13]} 44. f6 {[%emt 0:00:00]} (44. g5 $142) 44... Rd6 $2 {[%emt 0:03:54] [#]} (44... Kd6 {is a better defense.} 45. Rd8+ Ke5 46. Rxd4 Kxd4) 45. Rc8+ $1 {[%emt 0:00:00] White is clearly winning.} Kb7 {[%emt 0:04:05]} 46. f7 {[%emt 0:00:00]} Bd5+ {[%emt 0:15:22] [#]} 47. Bxd5+ $1 {[%emt 0:00:00]} Kxc8 {[%emt 0:00:06]} 48. Bc4 {[%emt 0:00:00]} Rd4 {[%emt 0:03:03]} (48... Rdf6 $142 49. g5 Rxf7 50. Bxf7 Rxf7 51. Rxe4 Rf2) 49. g5 {[%emt 0:00:00] Weighted Error Value: White=0.27 (precise) /Black=0.40} 1-0